[Event "*** Titled Tuesday Blitz"]
[Site "Chess.com"]
[Date "2020.05.19"]
[Round "2"]
[White "Ceejay271"]
[Black "Ariadna_Atreides"]
[Result "1-0"]
[WhiteElo "2388"]
[BlackElo "2063"]
[TimeControl "180+1"]
[EndTime "12:18:01 PDT"]
[Termination "Ceejay271 won on time"]

1. d4 {[%clk 0:03:00.9]} 1... e6 {[%clk 0:02:59.3]} 2. c4 {[%clk 0:02:59.9]}
2... Bb4+ {[%clk 0:02:58.6]} 3. Nc3 {[%clk 0:02:58.5]} 3... Nf6 {[%clk 0:02:58]}
4. g3 {[%clk 0:02:58.2]} 4... d5 {[%clk 0:02:54.3]} 5. Bg2 {[%clk 0:02:57.6]}
5... O-O {[%clk 0:02:53.5]} 6. Nf3 {[%clk 0:02:57]} 6... dxc4 {[%clk 0:02:53.1]}
7. O-O {[%clk 0:02:56.6]} 7... c5 {[%clk 0:02:52.9]} 8. dxc5 {[%clk 0:02:54.5]}
8... Bxc5 {[%clk 0:02:50.8]} 9. Qxd8 {[%clk 0:02:49.5]} 9... Rxd8 {[%clk
0:02:50.2]} 10. Ne5 {[%clk 0:02:50.2]} 10... Nc6 {[%clk 0:02:46.7]} 11. Nxc4
{[%clk 0:02:41.8]} 11... Bd7 {[%clk 0:02:36.4]} 12. Bf4 {[%clk 0:02:38.7]} 12...
Rac8 {[%clk 0:02:31.9]} 13. Nd6 {[%clk 0:02:35.9]} 13... Bxd6 {[%clk 0:02:28.9]}
14. Bxd6 {[%clk 0:02:35.2]} 14... Ne8 {[%clk 0:02:20.3]} 15. Ba3 {[%clk
0:02:30.3]} 15... a6 {[%clk 0:02:18]} 16. Rac1 {[%clk 0:02:24.9]} 16... b5
{[%clk 0:02:17.8]} 17. Bc5 {[%clk 0:02:22.6]} 17... Nf6 {[%clk 0:02:01.2]} 18.
Rfd1 {[%clk 0:02:17.7]} 18... e5 {[%clk 0:01:53.3]} 19. Bb6 {[%clk 0:02:08.8]}
19... Re8 {[%clk 0:01:51.7]} 20. Nd5 {[%clk 0:01:51.9]} 20... Nxd5 {[%clk
0:01:15.9]} 21. Bxd5 {[%clk 0:01:50.8]} 21... Nd4 {[%clk 0:00:51.1]} 22. Kf1
{[%clk 0:01:48.3]} 22... Bh3+ {[%clk 0:00:45.6]} 23. Ke1 {[%clk 0:01:47.3]}
23... Nc2+ {[%clk 0:00:40.4]} 24. Kd2 {[%clk 0:01:46.6]} 24... Nb4 {[%clk
0:00:32.5]} 25. Rxc8 {[%clk 0:01:38]} 25... Rxc8 {[%clk 0:00:31.9]} 26. Bb3
{[%clk 0:01:32.4]} 26... g6 {[%clk 0:00:16]} 27. Rc1 {[%clk 0:01:27.2]} 27...
Rxc1 {[%clk 0:00:14.5]} 28. Kxc1 {[%clk 0:01:27.5]} 28... Be6 {[%clk 0:00:11.3]}
29. Bxe6 {[%clk 0:01:25.3]} 29... fxe6 {[%clk 0:00:11.2]} 30. Bc5 {[%clk
0:01:19.6]} 30... Nc6 {[%clk 0:00:08.8]} 31. Kd2 {[%clk 0:01:17.2]} 31... Kf7
{[%clk 0:00:08.4]} 32. Ke3 {[%clk 0:01:17.5]} 32... Kf6 {[%clk 0:00:07.9]} 33.
Ke4 {[%clk 0:01:17.9]} 33... h5 {[%clk 0:00:06.6]} 34. h4 {[%clk 0:01:15.6]}
34... a5 {[%clk 0:00:04.1]} 35. b3 {[%clk 0:01:10.4]} 35... b4 {[%clk
0:00:02.9]} 36. f3 {[%clk 0:01:08.2]} 36... Kf7 {[%clk 0:00:02.7]} 37. e3 {[%clk
0:01:04.5]} 37... Kf6 {[%clk 0:00:02.3]} 38. Bd6 {[%clk 0:01:03.8]} 38... g5
{[%clk 0:00:01.1]} 39. hxg5+ {[%clk 0:01:02.2]} 39... Kxg5 {[%clk 0:00:01.9]}
40. Bxe5 {[%clk 0:01:02.3]} 40... Ne7 {[%clk 0:00:01]} 41. Bc7 {[%clk
0:01:00.3]} 41... Nd5 {[%clk 0:00:01.1]} 42. Bxa5 {[%clk 0:00:58]} 42... Nc3+
{[%clk 0:00:01.2]} 43. Kd3 {[%clk 0:00:57.9]} 1-0

[Event "*** Titled Tuesday Blitz"]
[Site "Chess.com"]
[Date "2020.05.19"]
[Round "2"]
[White "AleksanderHnydiuk"]
[Black "pfalcon1949"]
[Result "1-0"]
[WhiteElo "2584"]
[BlackElo "1959"]
[TimeControl "180+1"]
[EndTime "12:18:03 PDT"]
[Termination "AleksanderHnydiuk won by resignation"]

1. Nf3 {[%clk 0:03:00.9]} 1... Nf6 {[%clk 0:02:56.6]} 2. c4 {[%clk 0:03:00.6]}
2... e6 {[%clk 0:02:55.4]} 3. g3 {[%clk 0:03:00.6]} 3... d5 {[%clk 0:02:54.5]}
4. d4 {[%clk 0:03:00.7]} 4... Be7 {[%clk 0:02:54.8]} 5. Bg2 {[%clk 0:03:00.5]}
5... O-O {[%clk 0:02:55.3]} 6. Qc2 {[%clk 0:03:00.5]} 6... dxc4 {[%clk
0:02:55.9]} 7. Qxc4 {[%clk 0:03:00.5]} 7... a6 {[%clk 0:02:56.3]} 8. Qc2 {[%clk
0:03:00.7]} 8... b5 {[%clk 0:02:56.5]} 9. Ne5 {[%clk 0:03:00.9]} 9... Ra7 {[%clk
0:02:49.9]} 10. O-O {[%clk 0:03:00.3]} 10... Bb7 {[%clk 0:02:49.4]} 11. Bxb7
{[%clk 0:02:49.8]} 11... Rxb7 {[%clk 0:02:49.2]} 12. Rd1 {[%clk 0:02:48]} 12...
Nd5 {[%clk 0:02:43.4]} 13. Nc3 {[%clk 0:02:43.8]} 13... f6 {[%clk 0:02:21.2]}
14. Nd3 {[%clk 0:02:41.6]} 14... Nd7 {[%clk 0:02:15.3]} 15. Nxd5 {[%clk
0:02:35.3]} 15... exd5 {[%clk 0:02:14.6]} 16. Nf4 {[%clk 0:02:36.2]} 16... Nb6
{[%clk 0:02:14]} 17. Ne6 {[%clk 0:02:34]} 17... Qd7 {[%clk 0:02:11.6]} 18. Nxf8
{[%clk 0:02:33.7]} 18... Bxf8 {[%clk 0:02:12.5]} 19. Bf4 {[%clk 0:02:33.2]}
19... Bd6 {[%clk 0:02:01.2]} 20. Bxd6 {[%clk 0:02:31.4]} 20... Qxd6 {[%clk
0:02:02.1]} 21. Rac1 {[%clk 0:02:31.5]} 21... Nc4 {[%clk 0:01:43.6]} 22. b3
{[%clk 0:02:31]} 22... Na3 {[%clk 0:01:37.9]} 23. Qc6 {[%clk 0:02:28.8]} 23...
Qxc6 {[%clk 0:01:19.4]} 24. Rxc6 {[%clk 0:02:29.7]} 24... b4 {[%clk 0:01:10.5]}
25. Rxa6 {[%clk 0:02:24.8]} 25... Nb5 {[%clk 0:01:09.9]} 26. e3 {[%clk
0:02:19.7]} 26... Nc3 {[%clk 0:01:08.8]} 27. Rd2 {[%clk 0:02:17.4]} 27... h6
{[%clk 0:01:09]} 28. Rc2 {[%clk 0:02:16.6]} 28... Kh7 {[%clk 0:01:02.1]} 29. a3
{[%clk 0:02:16.7]} 29... Ne4 {[%clk 0:00:54.4]} 30. axb4 {[%clk 0:02:15.9]}
30... Rxb4 {[%clk 0:00:54.6]} 31. Rxc7 {[%clk 0:02:13.4]} 31... Rxb3 {[%clk
0:00:50.1]} 32. Ra2 {[%clk 0:01:53.9]} 32... Ng5 {[%clk 0:00:42.1]} 33. Kg2
{[%clk 0:01:52.2]} 33... h5 {[%clk 0:00:38.9]} 34. Rd7 {[%clk 0:01:44.3]} 34...
Rb5 {[%clk 0:00:32.4]} 35. Raa7 {[%clk 0:01:42.9]} 35... Ne6 {[%clk 0:00:31.8]}
36. Re7 {[%clk 0:01:39.6]} 36... Ng5 {[%clk 0:00:28.2]} 37. Rxg7+ {[%clk
0:01:36.2]} 37... Kh6 {[%clk 0:00:28.3]} 38. h4 {[%clk 0:01:30.2]} 38... Ne4
{[%clk 0:00:28]} 39. Rh7+ {[%clk 0:01:29.3]} 39... Kg6 {[%clk 0:00:28.1]} 40.
Rag7+ {[%clk 0:01:29.7]} 40... Kf5 {[%clk 0:00:27.6]} 41. Rxh5+ {[%clk
0:01:30.1]} 41... Ke6 {[%clk 0:00:26.2]} 42. Rg4 {[%clk 0:01:17]} 42... Rb2
{[%clk 0:00:25.3]} 43. Rxe4+ {[%clk 0:01:10.9]} 43... dxe4 {[%clk 0:00:25]} 44.
g4 {[%clk 0:01:08.5]} 44... Rb7 {[%clk 0:00:22]} 45. Kg3 {[%clk 0:01:07.5]}
45... Rg7 {[%clk 0:00:21.7]} 46. Kf4 {[%clk 0:01:03.1]} 46... Rg6 {[%clk
0:00:21.7]} 47. Ra5 {[%clk 0:01:00.8]} 47... Kf7 {[%clk 0:00:18.2]} 48. Kf5
{[%clk 0:00:58.8]} 48... Rh6 {[%clk 0:00:18.5]} 49. h5 {[%clk 0:00:58.4]} 49...
Rh8 {[%clk 0:00:17.2]} 50. Ra7+ {[%clk 0:00:57.7]} 1-0

[Event "*** Titled Tuesday Blitz"]
[Site "Chess.com"]
[Date "2020.05.19"]
[Round "2"]
[White "ehrenfeld"]
[Black "Last7Samurai"]
[Result "0-1"]
[WhiteElo "2441"]
[BlackElo "2829"]
[TimeControl "180+1"]
[EndTime "12:18:05 PDT"]
[Termination "Last7Samurai won on time"]

1. e4 {[%clk 0:02:58.9]} 1... e5 {[%clk 0:02:58.8]} 2. Nc3 {[%clk 0:02:57.5]}
2... Nf6 {[%clk 0:02:57.9]} 3. f4 {[%clk 0:02:57.4]} 3... d5 {[%clk 0:02:56.9]}
4. fxe5 {[%clk 0:02:57.3]} 4... Nxe4 {[%clk 0:02:57]} 5. Qf3 {[%clk 0:02:57.5]}
5... Nxc3 {[%clk 0:02:53.5]} 6. bxc3 {[%clk 0:02:57.6]} 6... Nc6 {[%clk
0:02:52.8]} 7. d4 {[%clk 0:02:57.3]} 7... Be7 {[%clk 0:02:52.1]} 8. Bd3 {[%clk
0:02:57.1]} 8... O-O {[%clk 0:02:51.3]} 9. Ne2 {[%clk 0:02:55]} 9... f6 {[%clk
0:02:49.2]} 10. Qh5 {[%clk 0:02:43.6]} 10... f5 {[%clk 0:02:47.8]} 11. Nf4
{[%clk 0:02:08.1]} 11... Na5 {[%clk 0:01:51]} 12. g4 {[%clk 0:02:06.2]} 12...
Bh4+ {[%clk 0:01:42.1]} 13. Kd1 {[%clk 0:02:03.7]} 13... Bg5 {[%clk 0:01:31.9]}
14. gxf5 {[%clk 0:01:48.1]} 14... Bxf5 {[%clk 0:00:55.1]} 15. Ne6 {[%clk
0:01:38.5]} 15... Qe8 {[%clk 0:00:42.6]} 16. Qxe8 {[%clk 0:01:21.4]} 16... Raxe8
{[%clk 0:00:41]} 17. Nxg5 {[%clk 0:01:18.7]} 17... h6 {[%clk 0:00:39.1]} 18.
Bxf5 {[%clk 0:01:08.4]} 18... Rxf5 {[%clk 0:00:40]} 19. Nh3 {[%clk 0:01:08.5]}
19... Ref8 {[%clk 0:00:35.5]} 20. Re1 {[%clk 0:01:02.2]} 20... Rf3 {[%clk
0:00:33.6]} 21. Ng1 {[%clk 0:00:31.3]} 21... Rf2 {[%clk 0:00:33.3]} 22. Ba3
{[%clk 0:00:27.6]} 22... Re8 {[%clk 0:00:28.6]} 23. h4 {[%clk 0:00:17.7]} 23...
Nc4 {[%clk 0:00:28.5]} 24. Bc1 {[%clk 0:00:12.8]} 24... Rg2 {[%clk 0:00:28.9]}
25. Ne2 {[%clk 0:00:09.6]} 25... Rf8 {[%clk 0:00:23.5]} 26. a4 {[%clk
0:00:07.3]} 26... Rff2 {[%clk 0:00:20.4]} 27. a5 {[%clk 0:00:02.3]} 27... a6
{[%clk 0:00:20.1]} 28. Ra4 {[%clk 0:00:01.9]} 28... Kf8 {[%clk 0:00:18.6]} 29.
Rxc4 {[%clk 0:00:01.1]} 29... dxc4 {[%clk 0:00:19.5]} 0-1

[Event "*** Titled Tuesday Blitz"]
[Site "Chess.com"]
[Date "2020.05.19"]
[Round "2"]
[White "AustrianFalcon"]
[Black "CMS13"]
[Result "1-0"]
[WhiteElo "2421"]
[BlackElo "2185"]
[TimeControl "180+1"]
[EndTime "12:18:05 PDT"]
[Termination "AustrianFalcon won by resignation"]

1. Nf3 {[%clk 0:02:59.9]} 1... d5 {[%clk 0:02:59.7]} 2. c4 {[%clk 0:02:57.3]}
2... e6 {[%clk 0:02:58.9]} 3. b3 {[%clk 0:02:55.6]} 3... Nf6 {[%clk 0:02:58.8]}
4. Bb2 {[%clk 0:02:55.2]} 4... Be7 {[%clk 0:02:55.7]} 5. g3 {[%clk 0:02:54.4]}
5... O-O {[%clk 0:02:55.6]} 6. Bg2 {[%clk 0:02:54.6]} 6... c6 {[%clk 0:02:55.4]}
7. O-O {[%clk 0:02:53.6]} 7... Nbd7 {[%clk 0:02:55.3]} 8. d3 {[%clk 0:02:53.8]}
8... Qc7 {[%clk 0:02:54.4]} 9. Nbd2 {[%clk 0:02:53.5]} 9... e5 {[%clk
0:02:54.6]} 10. cxd5 {[%clk 0:02:40.5]} 10... cxd5 {[%clk 0:02:54.4]} 11. Rc1
{[%clk 0:02:40]} 11... Qd6 {[%clk 0:02:53.6]} 12. Rc2 {[%clk 0:02:10.9]} 12...
Re8 {[%clk 0:02:52.4]} 13. Qa1 {[%clk 0:02:00.7]} 13... Bf8 {[%clk 0:02:50]} 14.
Rfc1 {[%clk 0:01:54.9]} 14... e4 {[%clk 0:02:42.3]} 15. dxe4 {[%clk 0:01:53.8]}
15... dxe4 {[%clk 0:02:42.4]} 16. Nc4 {[%clk 0:01:40.8]} 16... Qd5 {[%clk
0:02:28.6]} 17. Ne3 {[%clk 0:01:32.4]} 17... Qh5 {[%clk 0:02:19.9]} 18. Nd4
{[%clk 0:01:26.9]} 18... Nb6 {[%clk 0:02:09.9]} 19. a4 {[%clk 0:01:19.4]} 19...
Bh3 {[%clk 0:02:03.3]} 20. Bxh3 {[%clk 0:01:00.6]} 20... Qxh3 {[%clk 0:02:02.9]}
21. Ndf5 {[%clk 0:00:59.9]} 21... g6 {[%clk 0:01:59.6]} 22. Bxf6 {[%clk
0:00:56.9]} 22... gxf5 {[%clk 0:01:57.9]} 23. a5 {[%clk 0:00:47.6]} 23... Nd7
{[%clk 0:01:56.4]} 24. Nd5 {[%clk 0:00:47.5]} 24... Re6 {[%clk 0:01:47.8]} 25.
Nf4 {[%clk 0:00:38.1]} 25... Qh6 {[%clk 0:01:39.3]} 26. Nxe6 {[%clk 0:00:37.9]}
26... fxe6 {[%clk 0:01:38.7]} 27. Bd4 {[%clk 0:00:36.9]} 27... Re8 {[%clk
0:01:34.4]} 28. Rc8 {[%clk 0:00:36.3]} 28... Re7 {[%clk 0:01:33.9]} 29. R1c7
{[%clk 0:00:32.8]} 29... f4 {[%clk 0:01:25.2]} 30. Bc5 {[%clk 0:00:28.2]} 30...
f3 {[%clk 0:01:10.9]} 31. exf3 {[%clk 0:00:15.2]} 31... exf3 {[%clk 0:01:09.8]}
32. Bxe7 {[%clk 0:00:11.1]} 32... Qh3 {[%clk 0:01:06.4]} 33. Qf1 {[%clk
0:00:09.9]} 33... Qh6 {[%clk 0:00:46]} 34. Rxd7 {[%clk 0:00:09.2]} 34... e5
{[%clk 0:00:42.7]} 35. Rxf8+ {[%clk 0:00:10.1]} 35... Kg7 {[%clk 0:00:41.4]} 36.
Bg5+ {[%clk 0:00:09.5]} 36... Kxf8 {[%clk 0:00:39.8]} 37. Bxh6+ {[%clk
0:00:09.7]} 37... Kg8 {[%clk 0:00:39.9]} 38. Qb5 {[%clk 0:00:10.2]} 1-0

[Event "*** Titled Tuesday Blitz"]
[Site "Chess.com"]
[Date "2020.05.19"]
[Round "2"]
[White "AsaHoffmann"]
[Black "KafkaesqueKnight"]
[Result "1/2-1/2"]
[WhiteElo "2400"]
[BlackElo "2145"]
[TimeControl "180+1"]
[EndTime "12:18:06 PDT"]
[Termination "Game drawn by agreement"]

1. d4 {[%clk 0:02:54.9]} 1... Nf6 {[%clk 0:02:59.3]} 2. Bg5 {[%clk 0:02:53.8]}
2... d5 {[%clk 0:02:53.9]} 3. Nd2 {[%clk 0:02:53.1]} 3... c5 {[%clk 0:02:50]} 4.
e3 {[%clk 0:02:52.7]} 4... Nc6 {[%clk 0:02:49]} 5. c3 {[%clk 0:02:52.1]} 5...
Bf5 {[%clk 0:02:47]} 6. Bb5 {[%clk 0:02:48.8]} 6... e6 {[%clk 0:02:45]} 7. Ngf3
{[%clk 0:02:45.8]} 7... Be7 {[%clk 0:02:41.5]} 8. O-O {[%clk 0:02:40.9]} 8...
O-O {[%clk 0:02:39.2]} 9. Bxc6 {[%clk 0:02:40.1]} 9... bxc6 {[%clk 0:02:40.1]}
10. Ne5 {[%clk 0:02:39]} 10... Qc7 {[%clk 0:02:30.8]} 11. Qa4 {[%clk 0:02:34.8]}
11... Rfc8 {[%clk 0:02:05.3]} 12. f4 {[%clk 0:02:33.6]} 12... Rab8 {[%clk
0:02:04.1]} 13. b3 {[%clk 0:02:21.5]} 13... h6 {[%clk 0:01:48.6]} 14. Bxf6
{[%clk 0:02:18.8]} 14... Bxf6 {[%clk 0:01:43.3]} 15. dxc5 {[%clk 0:02:16.8]}
15... Bxe5 {[%clk 0:01:41.8]} 16. fxe5 {[%clk 0:02:16.4]} 16... Qxe5 {[%clk
0:01:42.7]} 17. Qd4 {[%clk 0:02:15.6]} 17... Qxd4 {[%clk 0:01:24]} 18. exd4
{[%clk 0:02:08.4]} 18... Bd3 {[%clk 0:01:21.8]} 19. Rf3 {[%clk 0:02:04.9]} 19...
Bg6 {[%clk 0:01:20.7]} 20. b4 {[%clk 0:02:00.3]} 20... Re8 {[%clk 0:01:19.6]}
21. Re1 {[%clk 0:01:58.5]} 21... a5 {[%clk 0:01:14.8]} 22. a3 {[%clk 0:01:57.6]}
22... axb4 {[%clk 0:01:12.8]} 23. axb4 {[%clk 0:01:52.7]} 23... Ra8 {[%clk
0:01:12.7]} 24. Nb3 {[%clk 0:01:51.1]} 24... Be4 {[%clk 0:01:02.3]} 25. Rfe3
{[%clk 0:01:48.7]} 25... e5 {[%clk 0:00:59.9]} 26. Na5 {[%clk 0:01:44]} 26...
exd4 {[%clk 0:00:59.3]} 27. cxd4 {[%clk 0:01:43.5]} 27... Re6 {[%clk 0:00:58.9]}
28. h3 {[%clk 0:01:37.3]} 28... f5 {[%clk 0:00:55.2]} 29. Ra3 {[%clk 0:01:30]}
29... Rb8 {[%clk 0:00:52.3]} 30. Rb3 {[%clk 0:01:13.9]} 30... g5 {[%clk
0:00:52.4]} 31. Re2 {[%clk 0:01:08.5]} 31... Kf7 {[%clk 0:00:51.7]} 32. Reb2
{[%clk 0:01:07.3]} 32... Rb5 {[%clk 0:00:49.7]} 33. Ra3 {[%clk 0:01:05]} 33...
f4 {[%clk 0:00:40]} 34. Kf2 {[%clk 0:01:03.6]} 34... Ke7 {[%clk 0:00:33.2]} 35.
Rc3 {[%clk 0:00:51.7]} 35... Kd7 {[%clk 0:00:29.6]} 36. Re2 {[%clk 0:00:45.4]}
36... Re8 {[%clk 0:00:24.9]} 37. Rb2 {[%clk 0:00:40.7]} 37... Reb8 {[%clk
0:00:25.1]} 38. Rcb3 {[%clk 0:00:40]} 38... Re8 {[%clk 0:00:19.7]} 39. Ra3
{[%clk 0:00:38]} 39... Reb8 {[%clk 0:00:19.3]} 40. Rab3 {[%clk 0:00:37.1]} 40...
Re8 {[%clk 0:00:17.8]} 41. Ra3 {[%clk 0:00:33.2]} 1/2-1/2

[Event "*** Titled Tuesday Blitz"]
[Site "Chess.com"]
[Date "2020.05.19"]
[Round "2"]
[White "XDPS"]
[Black "Jadeit90"]
[Result "1-0"]
[WhiteElo "2694"]
[BlackElo "2328"]
[TimeControl "180+1"]
[EndTime "12:18:08 PDT"]
[Termination "XDPS won by resignation"]

1. d4 {[%clk 0:02:59.9]} 1... g6 {[%clk 0:02:59]} 2. e4 {[%clk 0:02:58.2]} 2...
Bg7 {[%clk 0:02:43.1]} 3. Nf3 {[%clk 0:02:57.4]} 3... c5 {[%clk 0:02:43.3]} 4.
d5 {[%clk 0:02:56.1]} 4... d6 {[%clk 0:02:43.5]} 5. Be2 {[%clk 0:02:51.7]} 5...
Nf6 {[%clk 0:02:43.9]} 6. Nc3 {[%clk 0:02:51.3]} 6... O-O {[%clk 0:02:44.6]} 7.
O-O {[%clk 0:02:51.8]} 7... e6 {[%clk 0:02:45.3]} 8. dxe6 {[%clk 0:02:47.6]}
8... Bxe6 {[%clk 0:02:45.2]} 9. Bf4 {[%clk 0:02:46.2]} 9... d5 {[%clk
0:02:44.9]} 10. exd5 {[%clk 0:02:20.9]} 10... Nxd5 {[%clk 0:02:44.5]} 11. Nxd5
{[%clk 0:02:21.1]} 11... Qxd5 {[%clk 0:02:43.9]} 12. c3 {[%clk 0:02:21.4]} 12...
Nc6 {[%clk 0:02:41.8]} 13. Qa4 {[%clk 0:02:20.1]} 13... Rad8 {[%clk 0:02:25.8]}
14. Ng5 {[%clk 0:02:12.3]} 14... h6 {[%clk 0:02:13]} 15. Nxe6 {[%clk 0:02:08.9]}
15... Qxe6 {[%clk 0:02:13.3]} 16. Bc4 {[%clk 0:02:02]} 16... Qf5 {[%clk
0:02:13.3]} 17. Be3 {[%clk 0:01:59.6]} 17... a6 {[%clk 0:02:05.8]} 18. Be2
{[%clk 0:01:56.7]} 18... Rfe8 {[%clk 0:01:51.6]} 19. Rad1 {[%clk 0:01:55.2]}
19... Rxd1 {[%clk 0:01:48.5]} 20. Rxd1 {[%clk 0:01:54.9]} 20... h5 {[%clk
0:01:34.9]} 21. h3 {[%clk 0:01:38.7]} 21... Kh7 {[%clk 0:01:20.2]} 22. Bd3
{[%clk 0:01:28.4]} 22... Qe5 {[%clk 0:01:15.6]} 23. Qb3 {[%clk 0:01:24.9]} 23...
b5 {[%clk 0:01:13.5]} 24. Qxf7 {[%clk 0:01:23.5]} 24... Re6 {[%clk 0:01:09.7]}
25. Bf4 {[%clk 0:01:12.2]} 25... Qf6 {[%clk 0:01:08.7]} 26. Qxf6 {[%clk
0:01:07.1]} 26... Rxf6 {[%clk 0:01:09.3]} 27. Be3 {[%clk 0:01:06.9]} 27... c4
{[%clk 0:01:07.7]} 28. Be4 {[%clk 0:01:07.1]} 28... Ne5 {[%clk 0:01:04.8]} 29.
Rd5 {[%clk 0:01:06]} 29... Re6 {[%clk 0:01:02.1]} 30. Bd4 {[%clk 0:01:00.6]}
30... Kh6 {[%clk 0:00:32.2]} 31. Be3+ {[%clk 0:00:54.9]} 31... Kh7 {[%clk
0:00:32.4]} 32. Kf1 {[%clk 0:00:47.3]} 32... Nc6 {[%clk 0:00:29.9]} 33. Rxh5+
{[%clk 0:00:45.6]} 33... Kg8 {[%clk 0:00:30]} 34. Bd5 {[%clk 0:00:45]} 34...
gxh5 {[%clk 0:00:29.7]} 35. Bxe6+ {[%clk 0:00:45.5]} 35... Kf8 {[%clk
0:00:30.2]} 36. Bc8 {[%clk 0:00:39.9]} 36... a5 {[%clk 0:00:29.6]} 37. Bd7
{[%clk 0:00:39.5]} 37... Ne5 {[%clk 0:00:29.3]} 38. Bxb5 {[%clk 0:00:38.9]}
38... Nd3 {[%clk 0:00:30.2]} 39. Bxc4 {[%clk 0:00:30.5]} 39... Nxb2 {[%clk
0:00:29.4]} 40. Bc5+ {[%clk 0:00:29.7]} 40... Ke8 {[%clk 0:00:29.2]} 41. Bb5+
{[%clk 0:00:30.3]} 41... Kd8 {[%clk 0:00:29.3]} 42. Bb6+ {[%clk 0:00:30.8]}
42... Kc8 {[%clk 0:00:29.5]} 43. Bxa5 {[%clk 0:00:31.4]} 1-0

[Event "*** Titled Tuesday Blitz"]
[Site "Chess.com"]
[Date "2020.05.19"]
[Round "2"]
[White "Shukh_Nikolay"]
[Black "VerdeNotte"]
[Result "0-1"]
[WhiteElo "2524"]
[BlackElo "2822"]
[TimeControl "180+1"]
[EndTime "12:18:10 PDT"]
[Termination "VerdeNotte won by resignation"]

1. e4 {[%clk 0:03:00.9]} 1... e5 {[%clk 0:02:55.4]} 2. Nf3 {[%clk 0:03:00]} 2...
Nc6 {[%clk 0:02:55.2]} 3. Bb5 {[%clk 0:02:59.1]} 3... a6 {[%clk 0:02:55.4]} 4.
Ba4 {[%clk 0:02:58.9]} 4... d6 {[%clk 0:02:55.4]} 5. c3 {[%clk 0:02:57.7]} 5...
Bd7 {[%clk 0:02:55.4]} 6. d4 {[%clk 0:02:55.6]} 6... g6 {[%clk 0:02:55.2]} 7. d5
{[%clk 0:02:50.1]} 7... Nce7 {[%clk 0:02:54.1]} 8. c4 {[%clk 0:02:50]} 8... b5
{[%clk 0:02:48]} 9. Bb3 {[%clk 0:02:48.5]} 9... Bg7 {[%clk 0:02:47]} 10. Nc3
{[%clk 0:02:45.4]} 10... Nf6 {[%clk 0:02:43.3]} 11. Qe2 {[%clk 0:02:36.7]} 11...
O-O {[%clk 0:02:35.6]} 12. O-O {[%clk 0:02:33.3]} 12... b4 {[%clk 0:02:28.6]}
13. Nd1 {[%clk 0:02:12.1]} 13... Ne8 {[%clk 0:02:05.6]} 14. a3 {[%clk
0:02:04.2]} 14... a5 {[%clk 0:02:02.3]} 15. axb4 {[%clk 0:01:58.8]} 15... axb4
{[%clk 0:02:03.2]} 16. Rxa8 {[%clk 0:01:58.1]} 16... Qxa8 {[%clk 0:02:04.1]} 17.
Bd2 {[%clk 0:01:58.1]} 17... h6 {[%clk 0:01:35.8]} 18. Ne3 {[%clk 0:00:56.6]}
18... Nf6 {[%clk 0:01:29.9]} 19. Nc2 {[%clk 0:00:47.8]} 19... Nh5 {[%clk
0:01:16.9]} 20. Bxb4 {[%clk 0:00:36.8]} 20... Nf4 {[%clk 0:01:15.3]} 21. Qd2
{[%clk 0:00:35.7]} 21... f5 {[%clk 0:01:10.8]} 22. c5 {[%clk 0:00:27.6]} 22...
fxe4 {[%clk 0:01:09.2]} 23. Nfe1 {[%clk 0:00:27]} 23... Qa6 {[%clk 0:00:54.9]}
24. Ne3 {[%clk 0:00:20.6]} 24... Bb5 {[%clk 0:00:53.9]} 25. g3 {[%clk 0:00:16]}
25... Nh3+ {[%clk 0:00:50.9]} 26. Kg2 {[%clk 0:00:14.6]} 26... Bxf1+ {[%clk
0:00:51]} 27. Nxf1 {[%clk 0:00:13.7]} 27... Rxf2+ {[%clk 0:00:51.2]} 28. Qxf2
{[%clk 0:00:13]} 28... Nxf2 {[%clk 0:00:51]} 29. Kxf2 {[%clk 0:00:13.4]} 29...
Qb5 {[%clk 0:00:43.2]} 30. Nc2 {[%clk 0:00:12.9]} 30... dxc5 {[%clk 0:00:43]}
31. d6+ {[%clk 0:00:11]} 31... Kf8 {[%clk 0:00:40.6]} 32. dxe7+ {[%clk
0:00:10.4]} 32... Kxe7 {[%clk 0:00:40.9]} 33. Nfe3 {[%clk 0:00:09.9]} 33... cxb4
{[%clk 0:00:38.6]} 34. Nxb4 {[%clk 0:00:09.1]} 34... c6 {[%clk 0:00:29.3]} 0-1

[Event "*** Titled Tuesday Blitz"]
[Site "Chess.com"]
[Date "2020.05.19"]
[Round "2"]
[White "Asteroxylon"]
[Black "Borsuk_Konstantin"]
[Result "1-0"]
[WhiteElo "2451"]
[BlackElo "2633"]
[TimeControl "180+1"]
[EndTime "12:18:12 PDT"]
[Termination "Asteroxylon won by checkmate"]

1. e4 {[%clk 0:03:00.9]} 1... e6 {[%clk 0:02:59]} 2. d4 {[%clk 0:02:59.8]} 2...
d5 {[%clk 0:02:59.4]} 3. Bd3 {[%clk 0:02:59.7]} 3... Nf6 {[%clk 0:02:57.3]} 4.
e5 {[%clk 0:02:58.5]} 4... Nfd7 {[%clk 0:02:57.2]} 5. c3 {[%clk 0:02:53]} 5...
c5 {[%clk 0:02:57.4]} 6. f4 {[%clk 0:02:46.4]} 6... Nc6 {[%clk 0:02:45.6]} 7.
Nf3 {[%clk 0:02:46.2]} 7... cxd4 {[%clk 0:02:02.8]} 8. cxd4 {[%clk 0:02:45.7]}
8... f5 {[%clk 0:01:45.1]} 9. O-O {[%clk 0:02:20.3]} 9... Be7 {[%clk 0:01:42.9]}
10. Nc3 {[%clk 0:02:18.9]} 10... O-O {[%clk 0:01:38]} 11. Be3 {[%clk 0:02:18.7]}
11... a6 {[%clk 0:01:36.9]} 12. a3 {[%clk 0:02:13.1]} 12... b5 {[%clk
0:01:33.5]} 13. Kh1 {[%clk 0:02:10.5]} 13... Nb6 {[%clk 0:01:32.4]} 14. Qe2
{[%clk 0:01:50.2]} 14... b4 {[%clk 0:01:26.5]} 15. axb4 {[%clk 0:01:43.2]} 15...
Nxb4 {[%clk 0:01:26]} 16. Bb1 {[%clk 0:01:43.4]} 16... a5 {[%clk 0:01:22.1]} 17.
Rg1 {[%clk 0:01:43]} 17... Ba6 {[%clk 0:01:19.5]} 18. Qf2 {[%clk 0:01:38.2]}
18... Bd3 {[%clk 0:01:16.9]} 19. Bxd3 {[%clk 0:01:24.2]} 19... Nxd3 {[%clk
0:01:16.3]} 20. Qe2 {[%clk 0:01:24.7]} 20... Nb4 {[%clk 0:01:14.7]} 21. g4
{[%clk 0:01:24.6]} 21... Nc4 {[%clk 0:01:08.5]} 22. Bc1 {[%clk 0:01:16.5]} 22...
fxg4 {[%clk 0:00:51.3]} 23. Rxg4 {[%clk 0:01:17.4]} 23... Rf5 {[%clk 0:00:51]}
24. b3 {[%clk 0:01:10.9]} 24... Nb6 {[%clk 0:00:50.4]} 25. Be3 {[%clk
0:01:10.4]} 25... Rc8 {[%clk 0:00:41.3]} 26. Bd2 {[%clk 0:00:59.8]} 26... Nd7
{[%clk 0:00:38.2]} 27. Rag1 {[%clk 0:00:59.1]} 27... g6 {[%clk 0:00:37.9]} 28.
Nd1 {[%clk 0:00:53.9]} 28... Nf8 {[%clk 0:00:28.6]} 29. Ne3 {[%clk 0:00:52.6]}
29... Rf7 {[%clk 0:00:24]} 30. h4 {[%clk 0:00:46]} 30... Nc2 {[%clk 0:00:23]}
31. h5 {[%clk 0:00:37.4]} 31... Nxe3 {[%clk 0:00:21.6]} 32. Bxe3 {[%clk
0:00:38.3]} 32... Qb6 {[%clk 0:00:19.6]} 33. Qd3 {[%clk 0:00:36.2]} 33... Rb8
{[%clk 0:00:17.4]} 34. hxg6 {[%clk 0:00:34.9]} 34... hxg6 {[%clk 0:00:16.7]} 35.
Rxg6+ {[%clk 0:00:29.5]} 35... Kh8 {[%clk 0:00:07.7]} 36. Rg8# {[%clk
0:00:28.3]} 1-0